fUSD/lending_fUSD_20240503
["ID","MTS","AMOUNT","RATE_DAILY","PERIOD"]
[325342538,1714744265459,-923.85,0.000439,2]
[325342539,1714744265472,-1016.1,0.000439,2]
[325342540,1714744265519,-2235.8429291,0.000439,2]
[325342541,1714744265529,-4813.73066511,0.000439,2]
[325342542,1714744265546,-4813.73066511,0.000439,2]
[325342543,1714744265557,-4813.73066511,0.000439,2]
[325342544,1714744265567,-4813.73066511,0.000439,2]
[325342545,1714744265579,-4813.73066511,0.000439,2]
[325342546,1714744265593,-4813.73066511,0.000439,2]
[325342547,1714744265605,-150.0,0.0004391,30]
[325342548,1714744265616,-150.0,0.0004396,30]
[325342549,1714744265627,-9875.08,0.00043999,49]
[325342550,1714744265637,-697.82112024,0.00043999,49]
[325342551,1714744265650,-311.82966537,0.00043999,49]
[325342552,1714744265663,-812.46451016,0.00043999,49]
[325342553,1714744265676,-352.89011207,0.00043999,49]
[325342554,1714744266928,-262.05080858,0.00027977,2]
[325342555,1714744266944,-255.41169921,0.00027977,2]
[325342556,1714744266957,-11804.96893865,0.00027977,2]
[325342557,1714744266967,-158.1095261,0.000297,2]
[325342558,1714744266980,-357.92937263,0.00035499,3]
[325342559,1714744266990,-244.28858097,0.00035499,7]
[325342560,1714744267001,-328.65450663,0.00039422,2]
[325342561,1714744267012,-7575.5802752,0.00043829,2]
[325342562,1714744267022,-764.53673514,0.00043835,3]
[325342563,1714744267032,-500.49562373,0.00043835,30]
[325342564,1714744267049,-7700.07459216,0.00043999,49]
[325342565,1714744267060,-9875.08,0.00043999,49]
[325342566,1714744267071,-9875.08,0.00043999,49]
[325342567,1714744267082,-9875.10257212,0.00043999,49]
[325342568,1714744267092,-681.36,0.00043999,49]
[325342569,1714744267108,-681.36,0.00043999,49]
[325342570,1714744267119,-681.36,0.00043999,49]
[325342571,1714744267141,-681.36,0.00043999,49]
[325342572,1714744267151,-155.50558626,0.00043999,49]
[325342573,1714744267168,-526.03441374,0.00043999,49]
[325342574,1714744267177,-544.91435594,0.00044,24]
[325342575,1714744267479,-467.14355168,0.00044,24]
[325342576,1714744267493,-1260.73554116,0.00044,24]
[325342577,1714744267506,-31514.86306882,0.00044,24]
[325342578,1714744267533,-15341.26555655,0.00044,24]
[325342579,1714744267553,-871.07792585,0.00044,24]
[325342580,1714744267563,-32741.76900995,0.00044,34]
[325342581,1714744267576,-17258.23099005,0.00044,34]
[325342582,1714744267589,-97939.4430511,0.00044,60]
[325342583,1714744267602,-88279.82378236,0.00044,60]
[325342584,1714744267615,-123553.99999998,0.00044,60]
[325342585,1714744267804,-405.68759102,0.00044,60]
[325342586,1714744267846,-2924.66815476,0.00044,60]
[325342587,1714744267859,-11612.9998,0.00044,60]
[325342591,1714744404723,242.66122416,0.000101,2]
[325342600,1714744636061,-888.0,0.00010945,2]
[325342601,1714745032424,-2308.786102,0.00010889,2]
[325342602,1714745032444,-2262.0,0.00010944,2]
[325342603,1714745032466,-12229.213898,0.00011,2]
[325342605,1714745066693,572.87261508,9.851e-05,2]
[325342606,1714745096679,422.87261508,9.9e-05,2]
[325342607,1714745112802,422.87261508,9.9e-05,2]
[325342608,1714745134945,422.87261508,9.9e-05,2]
[325342609,1714745150658,422.9541034,8.91e-05,2]
[325342610,1714745170685,423.4346937,8.91e-05,2]
[325342611,1714745253008,-35000.0,0.00011,2]
[325342612,1714745253598,-3200.0,0.00011,2]
[325342621,1714745432223,-334.50747262,0.00011,2]
[325342632,1714745432593,-326.03855295,0.00011,2]
[325342633,1714745432613,-278.8,0.00011,2]
[325342634,1714745432624,-1099.33301702,0.00011,2]
[325342635,1714745432636,-6654.79395067,0.00011,2]
[325342636,1714745432659,-9.99660365,0.00011,2]
[325342637,1714745432671,-452.75892829,0.00011,2]
[325342639,1714745432682,-278.908704,0.00011,2]
[325342641,1714745432694,-6904.86451973,0.00011,2]
[325342644,1714745432706,-798.12958754,0.00011,2]
[325342646,1714745432717,-7251.11059573,0.00011,2]
[325342647,1714745432729,-51441.86522817,0.00011,2]
[325342648,1714745432739,-159.2387424,0.000128,2]
[325342649,1714745432748,-3072.5,0.000129,2]
[325342650,1714745432758,-153.74670147,0.000129,2]
[325342651,1714745432768,-159.2387424,0.000129,2]
[325342652,1714745432777,-318.60427583,0.000129,2]
[325342653,1714745432787,-189.73207954,0.000129,2]
[325342654,1714745432797,-2616.54635215,0.000129,2]
[325342655,1714745432806,-158.1095261,0.000129,2]
[325342656,1714745432816,-208.71545542,0.0001299,2]
[325342657,1714745432825,-208.71545542,0.0001299,2]
[325342658,1714745432835,-160.27,0.0001299,2]
[325342659,1714745432844,-160.27,0.0001299,2]
[325342660,1714745432859,-160.27,0.0001299,2]
[325342661,1714745432871,-160.27,0.0001299,2]
[325342662,1714745432880,-55700.9074411,0.0001299,2]
[325342663,1714745432942,-7031.59422298,0.0001299,2]
[325342695,1714745438182,-17381.49833592,0.0001299,2]
[325342696,1714745438191,-8736161.42985415,0.00013,2]
[325342697,1714745438200,-2961053.64620461,0.00013,2]
[325342698,1714745438210,-1749.0834379,0.00013,2]
[325342699,1714745438219,-150.0,0.00014098,2]
[325342700,1714745438229,-150.0,0.00014098,2]
[325342701,1714745438238,-150.0,0.00014098,2]
[325342702,1714745438247,-150.0,0.00014098,2]
[325342703,1714745438256,-150.0,0.00014098,2]
[325342704,1714745438265,-150.0,0.00014098,2]
[325342705,1714745438274,-150.0,0.00014098,2]
[325342706,1714745438283,-2309.56183027,0.00015,2]
[325342707,1714745438292,-1005.89459236,0.00016897,2]
[325342708,1714745438302,-155.0,0.00016997,2]
[325342709,1714745438311,-8085.98532992,0.00016997,2]
[325342710,1714745438320,-6905.56473441,0.00016997,2]
[325342711,1714745438329,-153.74670147,0.00017329,2]
[325342712,1714745438339,-450.0,0.00018,3]
[325342713,1714745438350,-499.99,0.00018,2]
[325342714,1714745438360,-161.08,0.000195,2]
[325342715,1714745438370,-158.75,0.000195,2]
[325342716,1714745438380,-151.91320181,0.000199,2]
[325342717,1714745438390,-6226.02936575,0.0002,2]
[325342719,1714745438400,-500.0,0.0002,3]
[325342721,1714745438409,-1005.89459234,0.00020755,2]
[325342723,1714745438419,-155.0,0.000209,2]
[325342725,1714745438428,-151.89,0.00021644,2]
[325342727,1714745438438,-153.74670147,0.00021757,2]
[325342729,1714745438447,-550.0,0.00022,3]
[325342731,1714745438457,-192.0,0.00022389,2]
[325342733,1714745438466,-286.24,0.00022412,2]
[325342735,1714745438476,-200.0,0.00022421,2]
[325342737,1714745438486,-198.74,0.00022426,2]
[325342739,1714745438495,-150.0,0.0002243,2]
[325342741,1714745438505,-240.03,0.00022465,2]
[325342743,1714745438515,-250.0,0.00022579,2]
[325342745,1714745438525,-167.66,0.00022588,2]
[325342747,1714745438535,-325.01,0.00022597,2]
[325342748,1714745438544,-600.49,0.00022603,2]
[325342749,1714745438559,-7044.75,0.00022808,2]
[325342750,1714745438569,-318.60427582,0.00023233,2]
[325342751,1714745438579,-600.0,0.00024,3]
[325342752,1714745438588,-1135.31,0.00024174,2]
[325342753,1714745438598,-1005.89459234,0.00024612,2]
[325342754,1714745438609,-888.0,0.00024657,2]
[325342755,1714745438618,-192.0,0.00025187,2]
[325342756,1714745438628,-650.0,0.00026,3]
[325342757,1714745438637,-153.74670147,0.00026186,2]
[325342758,1714745438646,-155.0,0.00027976,2]
[325342759,1714745438656,-2504.96065783,0.00027976,3]
[325342760,1714745438666,-567.94713486,0.00027976,2]
[325342761,1714745438675,-1174.14372478,0.00027976,2]
[325342762,1714745438686,-155.0,0.00027976,2]
[325342763,1714745438696,-359.45974177,0.00027976,2]
[325342764,1714745438706,-389.49519283,0.00027976,2]
[325342765,1714745438716,-592.56,0.00027976,2]
[325342766,1714745438726,-1651.00918815,0.00027976,3]
[325342767,1714745438735,-409.47154605,0.00027976,2]
[325342768,1714745438745,-155.1721865,0.00027976,2]
[325342769,1714745438755,-155.0,0.00027976,2]
[325342770,1714745438765,-944.77415243,0.00027976,2]
[325342771,1714745438775,-183.56218558,0.00027976,2]
[325342772,1714745438785,-209.07671972,0.00027977,2]
[325342773,1714745438795,-35267.57312085,0.00027977,2]
[325342774,1714745438805,-192.0,0.00027986,2]
[325342775,1714745438815,-1005.89459234,0.0002847,2]
[325342776,1714745438824,-40301.22769543,0.00028613,2]
[325342777,1714745438834,-236.75458862,0.0003,2]
[325342778,1714745438844,-2223.86178161,0.0003,3]
[325342779,1714745438853,-352.69085783,0.00030073,2]
[325342780,1714745438869,-153.74670147,0.00030614,2]
[325342781,1714745438880,-192.0,0.00030785,2]
[325342782,1714745438889,-374838.56271776,0.0003098,2]
[325342783,1714745438898,-151.89,0.0003213,2]
[325342784,1714745438910,-1005.89459234,0.00032327,2]
[325342785,1714745438919,-500.0,0.000329,2]
[325342786,1714745438928,-1434.994878,0.00033,3]
[325342787,1714745438937,-318.60427582,0.00033567,2]
[325342788,1714745438947,-192.0,0.00033583,2]
[325342789,1714745438957,-353.13901168,0.00035,120]
[325342790,1714745438966,-2447.30617214,0.00035,4]
[325342791,1714745438975,-153.74670147,0.00035043,7]
[325342792,1714745438984,-202.3,0.00035318,120]
[325342793,1714745438993,-150.0,0.00035499,2]
[325342794,1714745439003,-321182.05080885,0.000355,2]
[325342795,1714745439012,-2101.01942897,0.000356,30]
[325342796,1714745439021,-500.0,0.000356,2]
[325342797,1714745439030,-296.53382806,0.0003584,10]
[325342798,1714745439040,-150.56,0.00036087,2]
[325342799,1714745439050,-419.06,0.00036087,2]
[325342800,1714745439059,-150.0,0.00036087,2]
[325342801,1714745439070,-1005.89459234,0.00036185,2]
[325342802,1714745439079,-9583.82270023,0.000375,3]
[325342803,1714745439089,-164.32725331,0.00037568,2]
[325342804,1714745439099,-150.0,0.00038172,2]
[325342805,1714745439111,-4088.79484012,0.000389,15]
[325342806,1714745439120,-252.64562192,0.000389,30]
[325342807,1714745439129,-150.0,0.00038967,2]
[325342808,1714745439139,-2500.0,0.00039121,90]
[325342809,1714745439148,-153.74670147,0.00039471,13]
[325342810,1714745439158,-150.0,0.00039779,2]
[325342811,1714745439167,-22153.95208094,0.0004,4]
[325342812,1714745439177,-557.91381552,0.0004,4]
[325342813,1714745439189,-155.0,0.0004,4]
[325342814,1714745439199,-193.31284266,0.0004,2]
[325342815,1714745439209,-1005.89459234,0.00040042,2]
[325342816,1714745439219,-150.0,0.00040608,2]
[325342817,1714745439229,-1000.0,0.00041095,2]
[325342818,1714745439238,-157.0,0.00041096,2]
[325342819,1714745439247,-150.0,0.00041454,2]
[325342820,1714745439259,-788.0,0.0004171,30]
[325342821,1714745439269,-488.0,0.0004171,30]
[325342822,1714745439279,-642524.53,0.00042,10]
[325342823,1714745439288,-788.0,0.0004214,30]
[325342824,1714745439297,-488.0,0.0004214,30]
[325342825,1714745439308,-510.0,0.00042187,7]
[325342826,1714745439317,-155.22781561,0.00042299,7]
[325342827,1714745439326,-150.0,0.000423,30]
[325342828,1714745439336,-150.0,0.000423,30]
[325342829,1714745439346,-150.0,0.000423,30]
[325342830,1714745439355,-150.0,0.000423,30]
[325342831,1714745439366,-150.0,0.00042318,2]
[325342832,1714745439376,-150.0,0.0004238,30]
[325342833,1714745439386,-1000.0,0.00042383,20]
[325342834,1714745439396,-1000.0,0.00042465,2]
[325342835,1714745439406,-1000.0,0.0004252,21]
[325342836,1714745439415,-788.0,0.0004257,30]
[325342837,1714745439425,-488.0,0.0004257,30]
[325342838,1714745439435,-151.89,0.00042615,2]
[325342839,1714745439444,-1000.0,0.00042657,22]
[325342840,1714745439454,-500.0,0.00042657,33]
[325342841,1714745439464,-150.0,0.0004277,30]
[325342842,1714745439473,-1000.0,0.00042794,23]
[325342843,1714745439483,-150.0,0.00042822,30]
[325342844,1714745439492,-1000.0,0.00042931,24]
[325342845,1714745439502,-1121.56659511,0.00042958,5]
[325342846,1714745439512,-500.0,0.00042971,7]
[325342847,1714745439522,-500.0,0.00042971,7]
[325342848,1714745439531,-170.65588073,0.00042971,7]
[325342849,1714745439541,-160.00073898,0.00043,15]
[325342850,1714745439552,-5000.0,0.00043,14]
[325342851,1714745439561,-788.0,0.00043,30]
[325342852,1714745439571,-381.18244276,0.00043,30]
[325342853,1714745439580,-488.0,0.00043,30]
[325342854,1714745439590,-1055.14969523,0.00043,30]
[325342855,1714745439599,-792.10000001,0.00043025,120]
[325342856,1714745439612,-1000.0,0.00043068,25]
[325342870,1714745439972,-500.0,0.00043109,31]
[325342875,1714745439994,-1125.67531025,0.0004312,10]
[325342878,1714745440005,-1106.9620482,0.0004312,10]
[325342881,1714745440016,-150.0,0.000432,2]
[325342884,1714745440026,-1000.0,0.00043205,26]
[325342886,1714745440035,-500.0,0.00043205,35]
[325342889,1714745440045,-1000.0,0.00043217,30]
[325342892,1714745440055,-500.0,0.00043217,20]
[325342895,1714745440065,-150.0,0.0004324,30]
[325342898,1714745440075,-1000.0,0.00043342,27]
[325342901,1714745440085,-150.0,0.00043344,30]
[325342904,1714745440095,-500.0,0.00043379,36]
[325342907,1714745440105,-500.0,0.00043383,32]
[325342910,1714745440121,-788.0,0.0004343,30]
[325342913,1714745440131,-488.0,0.0004343,30]
[325342916,1714745440141,-1000.0,0.00043479,28]
[325342919,1714745440151,-3000.0,0.0004352,19]
[325342921,1714745440161,-1560.03868352,0.00043611,2]
[325342923,1714745440171,-1000.0,0.00043616,29]
[325342925,1714745440180,-150.0,0.0004371,30]
[325342927,1714745440190,-1610.69656411,0.00043718,2]
[325342929,1714745440201,-164.32725331,0.00043735,2]
[325342931,1714745440211,-1000.0,0.00043753,30]
[325342933,1714745440221,-629.85838265,0.00043753,37]
[325342935,1714745440233,-2000.0,0.0004378,5]
[325342937,1714745440243,-150.0,0.00043793,2]
[325342940,1714745440253,-150.0,0.00043795,2]
[325342942,1714745440262,-10998.19823568,0.000438,60]
[325342944,1714745440272,-1000.0,0.000438,80]
[325342946,1714745440282,-177.9,0.000438,30]
[325342948,1714745440292,-236.45338235,0.00043835,30]
[325342950,1714745440302,-500.0,0.00043835,30]
[325342952,1714745440311,-500.0,0.00043835,30]
[325342954,1714745440321,-500.0,0.00043835,30]
[325342956,1714745440331,-513.313704,0.00043835,30]
[325342958,1714745440341,-500.0,0.00043835,30]
[325342960,1714745440351,-501.83841527,0.00043835,30]
[325342962,1714745440365,-500.0,0.00043835,30]
[325342964,1714745440375,-500.0,0.00043835,30]
[325342966,1714745440384,-500.0,0.00043835,30]
[325342968,1714745440394,-500.0,0.00043835,30]
[325342970,1714745440404,-500.0,0.00043835,30]
[325342972,1714745440414,-398.9520087,0.00043835,30]
[325342974,1714745440423,-500.0,0.00043835,30]
[325342976,1714745440433,-500.0,0.00043835,30]
[325342978,1714745440442,-500.0,0.00043835,30]
[325342980,1714745440452,-500.0,0.00043835,30]
[325342982,1714745440462,-500.0,0.00043835,30]
[325342984,1714745440472,-500.0,0.00043835,30]
[325342986,1714745440482,-500.0,0.00043835,30]
[325342988,1714745440492,-500.0,0.00043835,30]
[325342990,1714745440502,-500.0,0.00043835,30]
[325342992,1714745440512,-500.0,0.00043835,30]
[325342994,1714745440522,-500.0,0.00043835,30]
[325342996,1714745440532,-500.0,0.00043835,30]
[325342997,1714745440542,-500.0,0.00043835,30]
[325342998,1714745440552,-500.0,0.00043835,30]
[325342999,1714745440561,-500.0,0.00043835,30]
[325343000,1714745440571,-500.0,0.00043835,30]
[325343001,1714745440580,-502.11359744,0.00043835,30]
[325343002,1714745440591,-500.0,0.00043835,30]
[325343003,1714745440600,-500.0,0.00043835,30]
[325343004,1714745440612,-500.0,0.00043835,30]
[325343005,1714745440623,-500.0,0.00043835,30]
[325343006,1714745440632,-500.0,0.00043835,30]
[325343007,1714745440642,-866.89,0.00043835,30]
[325343008,1714745440652,-500.0,0.00043835,30]
[325343009,1714745440662,-811.27,0.00043835,30]
[325343010,1714745440672,-500.0,0.00043835,30]
[325343011,1714745440682,-500.0,0.00043835,30]
[325343012,1714745440692,-1223.75,0.00043835,30]
[325343013,1714745440702,-821.55,0.00043835,30]
[325343014,1714745440712,-847.56,0.00043835,30]
[325343015,1714745440722,-500.0,0.00043835,30]
[325343016,1714745440732,-500.0,0.00043835,30]
[325343017,1714745440742,-1019.82,0.00043835,30]
[325343018,1714745440752,-532.97,0.00043835,30]
[325343019,1714745440763,-500.0,0.00043835,30]
[325343020,1714745440773,-500.0,0.00043835,30]
[325343021,1714745440782,-500.0,0.00043835,30]
[325343022,1714745440792,-940.69,0.00043835,30]
[325343023,1714745440802,-500.0,0.00043835,30]
[325343024,1714745440812,-552.96,0.00043835,30]
[325343025,1714745440822,-500.0,0.00043835,30]
[325343026,1714745440832,-500.0,0.00043835,30]
[325343027,1714745440842,-500.0,0.00043835,30]
[325343028,1714745440852,-500.0,0.00043835,30]
[325343029,1714745440870,-1925.94,0.00043835,30]
[325343030,1714745440881,-500.0,0.00043835,30]
[325343031,1714745440891,-500.0,0.00043835,30]
[325343032,1714745440901,-500.0,0.00043835,30]
[325343033,1714745440912,-500.0,0.00043835,30]
[325343034,1714745440922,-500.0,0.00043835,30]
[325343035,1714745440931,-500.0,0.00043835,30]
[325343036,1714745440941,-500.0,0.00043835,30]
[325343037,1714745440951,-168.2138373,0.00043835,30]
[325343038,1714745440961,-500.0,0.00043835,30]
[325343039,1714745440971,-506.48,0.00043835,30]
[325343040,1714745440981,-711.13,0.00043835,30]
[325343041,1714745440991,-500.0,0.00043835,30]
[325343042,1714745441001,-500.0,0.00043835,30]
[325343043,1714745441011,-500.0,0.00043835,30]
[325343044,1714745441020,-500.0,0.00043835,30]
[325343045,1714745441032,-168.63186526,0.00043835,30]
[325343046,1714745441042,-500.0,0.00043835,30]
[325343047,1714745441052,-502.10894736,0.00043835,30]
[325343048,1714745441061,-500.0,0.00043835,30]
[325343049,1714745441071,-500.0,0.00043835,30]
[325343050,1714745441081,-500.0,0.00043835,30]
[325343051,1714745441091,-500.0,0.00043835,30]
[325343052,1714745441100,-1279.24,0.00043835,30]
[325343053,1714745441114,-500.0,0.00043835,30]
[325343054,1714745441124,-547.32639085,0.00043835,30]
[325343055,1714745441133,-1238.06,0.00043835,30]
[325343056,1714745441142,-674.27,0.00043835,30]
[325343057,1714745441152,-500.0,0.00043835,30]
[325343059,1714745441161,-225.3876738,0.00043835,30]
[325343060,1714745441171,-616.96,0.00043835,30]
[325343061,1714745441181,-500.0,0.00043835,30]
[325343062,1714745441191,-248.28446396,0.00043835,30]
[325343063,1714745441203,-500.0,0.00043835,30]
[325343064,1714745441212,-581.19,0.00043835,30]
[325343065,1714745441221,-500.0,0.00043835,30]
[325343066,1714745441231,-1380.8,0.00043835,30]
[325343067,1714745441240,-1285.65,0.00043835,30]
[325343068,1714745441250,-500.0,0.00043835,30]
[325343069,1714745441259,-896.58,0.00043835,30]
[325343070,1714745441268,-500.0,0.00043835,30]
[325343071,1714745441278,-777.28,0.00043835,30]
[325343072,1714745441287,-1099.22,0.00043835,30]
[325343073,1714745441296,-1298.84,0.00043835,30]
[325343074,1714745441306,-1431.65,0.00043835,30]
[325343075,1714745441315,-1045.36,0.00043835,30]
[325343076,1714745441324,-500.0,0.00043835,30]
[325343077,1714745441334,-500.0,0.00043835,30]
[325343078,1714745441343,-500.0,0.00043835,30]
[325343079,1714745441352,-500.0,0.00043835,30]
[325343080,1714745441366,-495.23030986,0.00043835,30]
[325343081,1714745441376,-501.48822275,0.00043835,30]
[325343082,1714745441385,-929.81,0.00043835,30]
[325343083,1714745441394,-500.0,0.00043835,30]
[325343084,1714745441403,-500.0,0.00043835,30]
[325343085,1714745441413,-500.0,0.00043835,30]
[325343086,1714745441422,-500.0,0.00043835,30]
[325343087,1714745441431,-500.0,0.00043835,30]
[325343088,1714745441440,-500.0,0.00043835,30]
[325343089,1714745441449,-500.0,0.00043835,30]
[325343090,1714745441458,-665.37,0.00043835,30]
[325343091,1714745441467,-500.0,0.00043835,30]
[325343092,1714745441477,-900.03,0.00043835,30]
[325343093,1714745441487,-1452.45,0.00043835,30]
[325343094,1714745441496,-500.0,0.00043835,30]
[325343095,1714745441506,-2004.80122489,0.00043835,30]
[325343096,1714745441516,-500.0,0.00043835,30]
[325343097,1714745441525,-500.0,0.00043835,30]
[325343098,1714745441535,-500.0,0.00043835,30]
[325343099,1714745441544,-500.0,0.00043835,30]
[325343100,1714745441554,-877.01,0.00043835,30]
[325343101,1714745441563,-500.0,0.00043835,30]
[325343102,1714745441573,-500.0,0.00043835,30]
[325343103,1714745441583,-500.0,0.00043835,30]
[325343104,1714745441593,-597.5324255,0.00043835,30]
[325343105,1714745441603,-535.68,0.00043835,30]
[325343106,1714745441615,-500.0,0.00043835,30]
[325343107,1714745441624,-500.0,0.00043835,30]
[325343108,1714745441634,-500.0,0.00043835,30]
[325343109,1714745441643,-500.0,0.00043835,30]
[325343110,1714745441653,-2009.71,0.00043835,30]
[325343111,1714745441663,-500.0,0.00043835,30]
[325343112,1714745441673,-501.3139112,0.00043835,30]
[325343113,1714745441683,-500.0,0.00043835,30]
[325343114,1714745441692,-501.27513728,0.00043835,30]
[325343115,1714745441702,-500.0,0.00043835,30]
[325343116,1714745441711,-1422.06,0.00043835,30]
[325343117,1714745441722,-201.73590193,0.00043835,30]
[325343118,1714745441732,-500.0,0.00043835,30]
[325343119,1714745441742,-500.0,0.00043835,30]
[325343120,1714745441752,-500.0,0.00043835,30]
[325343121,1714745441762,-500.0,0.00043835,30]
[325343122,1714745441772,-642.18053863,0.00043835,30]
[325343123,1714745441782,-500.0,0.00043835,30]
[325343124,1714745441792,-1197.13,0.00043835,30]
[325343125,1714745441801,-500.0,0.00043835,30]
[325343126,1714745441811,-500.0,0.00043835,30]
[325343127,1714745441820,-500.0,0.00043835,30]
[325343128,1714745441830,-500.0,0.00043835,30]
[325343129,1714745441841,-502.62465709,0.00043835,30]
[325343130,1714745441850,-214.10522178,0.00043835,2]
[325343131,1714745441864,-1564.88,0.00043835,30]
[325343132,1714745441875,-500.0,0.00043835,30]
[325343133,1714745441885,-198.87490543,0.00043835,30]
[325343134,1714745441895,-862.34,0.00043835,30]
[325343135,1714745441905,-500.0,0.00043835,30]
[325343136,1714745441916,-500.0,0.00043835,30]
[325343137,1714745441927,-500.0,0.00043835,30]
[325343138,1714745441936,-500.0,0.00043835,30]
[325343139,1714745441946,-1022.67,0.00043835,30]
[325343140,1714745441959,-787.05,0.00043835,30]
[325343141,1714745441970,-991.92,0.00043835,30]
[325343142,1714745441980,-500.0,0.00043835,30]
[325343143,1714745441989,-516.41,0.00043835,30]
[325343144,1714745441998,-500.0,0.00043835,30]
[325343145,1714745442007,-510.61,0.00043835,30]
[325343146,1714745442017,-943.66,0.00043835,30]
[325343147,1714745442026,-500.0,0.00043835,30]
[325343148,1714745442036,-972.79,0.00043835,30]
[325343149,1714745442046,-503.22929312,0.00043835,30]
[325343150,1714745442056,-500.0,0.00043835,30]
[325343151,1714745442065,-1908.61,0.00043835,30]
[325343152,1714745442075,-500.0,0.00043835,30]
[325343153,1714745442084,-500.0,0.00043835,30]
[325343154,1714745442094,-500.0,0.00043835,30]
[325343155,1714745442104,-500.0,0.00043835,30]
[325343156,1714745442116,-495.26752227,0.00043835,30]
[325343157,1714745442126,-500.0,0.00043835,30]
[325343158,1714745442135,-500.0,0.00043835,30]
[325343159,1714745442144,-648.36,0.00043835,30]
[325343160,1714745442154,-500.0,0.00043835,30]
[325343161,1714745442163,-501.67127853,0.00043835,30]
[325343162,1714745442172,-500.0,0.00043835,30]
[325343163,1714745442182,-500.0,0.00043835,30]
[325343164,1714745442192,-766.74,0.00043835,30]
[325343165,1714745442201,-1188.73,0.00043835,30]
[325343166,1714745442210,-500.0,0.00043835,30]
[325343167,1714745442220,-500.0,0.00043835,30]
[325343168,1714745442229,-1373.63,0.00043835,30]
[325343169,1714745442238,-500.0,0.00043835,30]
[325343170,1714745442249,-500.0,0.00043835,30]
[325343171,1714745442258,-500.0,0.00043835,30]
[325343172,1714745442267,-500.0,0.00043835,30]
[325343173,1714745442276,-500.0,0.00043835,30]
[325343174,1714745442285,-500.0,0.00043835,30]
[325343175,1714745442295,-500.0,0.00043835,30]
[325343176,1714745442304,-500.0,0.00043835,30]
[325343177,1714745442313,-1392.92,0.00043835,30]
[325343178,1714745442323,-500.0,0.00043835,30]
[325343179,1714745442332,-500.0,0.00043835,30]
[325343180,1714745442342,-500.0,0.00043835,30]
[325343181,1714745442351,-500.0,0.00043835,30]
[325343182,1714745442363,-1760.48,0.00043835,30]
[325343183,1714745442375,-500.0,0.00043835,30]
[325343184,1714745442384,-1354.76,0.00043835,30]
[325343185,1714745442394,-1139.25,0.00043835,30]
[325343186,1714745442404,-1207.33,0.00043835,30]
[325343187,1714745442413,-500.0,0.00043835,30]
[325343188,1714745442423,-500.0,0.00043835,30]
[325343189,1714745442432,-500.0,0.00043835,30]
[325343190,1714745442442,-500.0,0.00043835,30]
[325343191,1714745442451,-504.15744964,0.00043835,30]
[325343192,1714745442460,-1365.34,0.00043835,30]
[325343193,1714745442469,-500.0,0.00043835,30]
[325343194,1714745442479,-1280.0,0.00043835,30]
[325343195,1714745442488,-988.3,0.00043835,30]
[325343196,1714745442504,-500.0,0.00043835,30]
[325343197,1714745442514,-500.0,0.00043835,30]
[325343198,1714745442523,-500.0,0.00043835,30]
[325343199,1714745442533,-556.01,0.00043835,30]
[325343200,1714745442542,-500.0,0.00043835,30]
[325343201,1714745442551,-1288.06,0.00043835,30]
[325343202,1714745442561,-500.0,0.00043835,30]
[325343203,1714745442570,-500.0,0.00043835,30]
[325343204,1714745442580,-500.0,0.00043835,30]